bitfinex/quotes_ETHUSD_20241212
["timestamp","ask_amount","ask_price","bid_price","bid_amount"]
[1733999393705,0.7905,3917.5,3916.8,3.0]
[1733999394481,0.335463,3918.5,3916.8,3.0]
[1733999394482,3.34322,3917.4,3916.8,3.0]
[1733999394677,0.7905,3917.1,3916.3,2.82884142]
[1733999395020,0.7905,3917.1,3916.0,2.55361]
[1733999395409,0.7644,3916.9,3916.0,2.55361]
[1733999395768,0.7644,3916.9,3915.9,2.82884142]
[1733999395992,0.7644,3916.8,3915.9,2.82884142]
[1733999396193,0.7644,3916.8,3916.0,0.53825714]
[1733999397130,0.7644,3916.8,3916.1,2.55354]
[1733999397279,0.7644,3916.8,3916.2,2.55349]
[1733999397479,0.7644,3916.8,3916.0,3.09187714]
[1733999397679,0.7644,3916.8,3916.2,2.55347]
[1733999397880,0.7644,3916.8,3916.1,0.59207186]
[1733999398289,0.7644,3916.8,3916.1,3.14559186]
[1733999398799,0.7644,3916.8,3916.2,2.55347]
[1733999399014,0.7644,3916.8,3916.3,2.55342]
[1733999399521,0.7644,3916.8,3916.5,2.55329]
[1733999400528,0.7644,3916.8,3916.1,1.06823323]
[1733999400733,0.7644,3916.8,3916.0,3.0]
[1733999400883,0.7644,3916.8,3916.1,1.22500884]
[1733999401086,0.7644,3916.8,3916.0,3.0]
[1733999401336,0.7648,3916.7,3916.0,3.0]
[1733999401483,0.7648,3916.6,3916.0,3.0]
[1733999401910,0.7759,3916.4,3915.6,4.06823323]
[1733999402092,0.7759,3916.4,3915.7,1.22527278]
[1733999402422,0.7759,3916.4,3915.6,3.0]
[1733999402625,0.7759,3916.4,3915.7,1.22529032]
[1733999402792,0.7759,3916.4,3915.6,3.0]
[1733999403145,2.55337,3916.4,3915.6,4.15505306]
[1733999403289,0.7759,3916.3,3915.6,4.15505306]
[1733999403622,2.55349,3916.2,3915.5,2.82884142]
[1733999403825,0.7759,3916.3,3915.5,2.82884142]
[1733999405362,0.7759,3916.3,3915.7,2.55379]
[1733999405519,0.7759,3916.3,3915.9,5.38249142]
[1733999405722,0.7759,3916.3,3915.9,2.82884142]
[1733999405949,0.7759,3916.3,3915.6,1.06823323]
[1733999406268,0.7759,3916.3,3915.5,2.82884142]
[1733999406561,3.313,3916.2,3915.5,2.82884142]
[1733999407149,0.7595,3916.2,3915.5,2.82884142]
[1733999408059,0.7595,3916.2,3915.6,3.0]
[1733999408227,0.7595,3916.2,3915.8,3.0]
[1733999408425,0.7882,3916.8,3915.6,4.71192826]
[1733999408665,0.7882,3916.8,3916.0,2.55357]
[1733999408830,0.7882,3916.8,3915.8,3.0]
[1733999408831,0.7882,3916.8,3916.1,2.55354]
[1733999409035,0.7882,3916.8,3916.2,2.808844]
[1733999409944,0.7882,3916.8,3916.2,0.255354]
[1733999410160,0.7882,3916.8,3916.0,2.55362]
[1733999410620,0.7882,3916.8,3915.9,0.50416435]
[1733999410823,0.7882,3916.8,3916.1,2.5535]
[1733999412062,0.7882,3916.8,3915.9,2.82884142]
[1733999412262,0.7882,3916.8,3916.5,2.55326]
[1733999412470,0.7882,3916.8,3916.5,3.39147014]
[1733999413675,0.7882,3916.8,3915.9,1.06823323]
[1733999413859,2.82884142,3917.2,3914.9,0.98087494]
[1733999413860,3.33506,3916.1,3915.1,1.06823323]
[1733999414063,3.33506,3916.1,3914.9,2.58105656]
[1733999414064,2.55364,3916.0,3914.9,2.04910817]
[1733999414394,2.55364,3916.0,3914.8,3.07347211]
[1733999414395,0.7719,3915.9,3914.8,3.07347211]
[1733999414548,3.3256,3915.9,3914.8,3.07347211]
[1733999414746,2.55377,3915.8,3914.9,0.30734721]
[1733999414974,2.55377,3915.8,3914.8,0.51907211]
[1733999415766,0.7719,3915.7,3914.8,0.51907211]
[1733999416155,0.7719,3915.7,3914.8,3.51907211]
[1733999416594,3.32572,3915.7,3914.8,0.51907211]
[1733999416893,3.32572,3915.7,3914.6,3.0]
[1733999417095,3.32572,3915.7,3914.7,0.555456]
[1733999417396,0.7907,3915.4,3914.6,0.50059861]
[1733999417564,2.55415,3915.2,3914.0,2.55492]
[1733999418369,3.31765,3914.9,3913.7,2.55509]
[1733999418706,0.331765,3914.8,3913.8,3.0]
[1733999418853,3.31765,3914.9,3913.8,3.0]
[1733999419520,0.7633,3914.9,3914.0,0.50897171]
[1733999419660,0.7633,3914.9,3914.0,3.06389171]
[1733999419863,0.7633,3914.9,3914.0,0.50897171]
[1733999420165,0.7633,3914.9,3914.2,3.0]
[1733999420393,0.7633,3914.9,3914.0,1.11537688]
[1733999420602,0.7633,3914.9,3914.1,2.55483]
[1733999420916,0.7633,3914.9,3914.2,3.0]
[1733999421265,0.7507,3914.4,3914.0,0.50897171]
[1733999421504,0.7507,3914.2,3913.2,2.55542]
[1733999421665,0.7507,3914.2,3913.2,0.255542]
[1733999422016,0.7507,3914.2,3913.2,0.52123685]
[1733999422703,0.7507,3914.2,3913.3,2.55538]
[1733999422919,2.55406,3915.4,3914.1,2.55485]
[1733999423261,2.55406,3915.4,3913.8,5.55506]
[1733999423262,1.006506,3915.3,3913.8,5.55506]
[1733999423415,0.7511,3915.3,3914.0,3.0]
[1733999423708,3.30524,3915.3,3913.8,3.0]
[1733999423920,2.55415,3915.2,3914.1,2.55486]
[1733999424070,2.884675,3915.2,3914.1,2.55486]
[1733999425318,0.330525,3915.2,3913.9,0.51526147]
[1733999425471,3.30519,3915.3,3914.1,2.55485]
[1733999425673,3.30519,3915.3,3914.2,2.55476]
[1733999426106,0.7511,3915.3,3913.9,0.51526147]
[1733999426273,0.7511,3915.3,3914.4,2.55466]
[1733999426803,2.55393,3915.6,3914.4,2.55466]
[1733999427044,0.255393,3915.5,3914.4,2.55466]
[1733999427334,2.55393,3915.6,3914.4,2.55461]
[1733999427515,2.5533,3916.5,3914.3,3.0]
[1733999427516,2.55401,3915.5,3914.3,3.0]
[1733999428035,2.55382,3915.7,3914.4,2.55461]
[1733999428257,2.55369,3915.9,3914.7,2.55445]
[1733999428398,5.38208142,3916.6,3915.0,2.55427]
[1733999428606,0.64579657,3916.5,3914.9,3.0]
[1733999428791,2.55362,3916.0,3914.9,3.0]
[1733999429286,2.55351,3916.2,3914.3,0.55]
[1733999429530,2.66118637,3916.1,3914.9,2.55431]
[1733999429728,0.7614,3916.0,3915.0,0.255431]
[1733999430226,3.42265,3916.0,3915.0,0.255431]
[1733999430386,3.31504,3916.0,3915.0,0.255431]
[1733999431949,2.5537,3915.9,3915.0,0.255431]
[1733999432716,2.5539,3915.6,3914.9,3.0]
[1733999433015,0.7628,3915.5,3914.5,3.0]
[1733999433349,0.7628,3915.5,3914.8,0.2496]
[1733999434256,0.7628,3915.5,3914.9,2.55428]
[1733999434424,0.7628,3915.5,3915.0,0.280388]
[1733999435353,0.7628,3915.5,3914.8,0.2496]
[1733999435537,2.55408,3915.3,3914.8,0.2496]
[1733999435742,0.7585,3915.2,3914.8,0.2496]
[1733999438496,2.55424,3915.1,3914.8,0.2496]
[1733999438708,0.7585,3915.2,3914.8,0.2496]
[1733999438864,3.35824,3914.9,3914.8,0.2496]
[1733999439561,0.8039,3914.9,3914.8,0.2496]
[1733999441144,3.35824,3914.9,3914.8,0.2496]
[1733999441904,3.46598439,3914.9,3914.8,0.2496]
[1733999442326,3.63840387,3914.9,3914.8,0.2496]
[1733999442509,4.25765826,3914.9,3914.8,0.2496]
[1733999444017,3.97749439,3914.9,3914.8,0.2496]
[1733999444216,4.25358759,3914.9,3914.8,0.2496]
[1733999446830,0.91008969,3914.9,3914.8,0.2496]
[1733999447317,0.26669755,3915.0,3914.8,0.2496]
[1733999447679,0.7523,3915.2,3914.8,0.2496]
[1733999448226,3.30645,3915.2,3914.8,0.2496]
[1733999448979,0.7523,3915.2,3914.8,0.2496]
[1733999449326,0.10615963,3915.5,3914.8,0.2496]
[1733999449481,0.7562,3915.6,3914.8,0.2496]
[1733999449482,2.66017256,3915.4,3914.8,0.2496]
[1733999449689,0.10615256,3915.3,3914.8,0.2496]
[1733999449889,0.7562,3915.6,3914.8,0.2496]
[1733999450085,0.10614591,3915.5,3914.8,0.2496]
[1733999450327,0.7562,3915.6,3914.8,0.530013]
[1733999450526,0.10615028,3915.5,3914.8,0.530013]
[1733999450703,3.3101,3915.6,3914.8,0.2496]
[1733999450910,2.55404,3915.4,3914.8,0.2496]
[1733999451621,0.7562,3915.6,3914.8,0.2496]
[1733999451805,0.7548,3915.0,3914.8,0.2496]
[1733999454050,3.30909,3915.0,3914.8,0.2496]
[1733999455239,0.7548,3915.0,3914.8,0.2496]
[1733999455607,0.7548,3915.0,3914.0,3.30942]
[1733999455608,0.7548,3915.0,3914.1,0.55]
[1733999455844,0.7548,3915.0,3914.1,1.33289971]
[1733999456439,0.7548,3915.0,3914.1,3.88775971]
[1733999458033,0.7548,3915.0,3914.2,3.78111621]
[1733999458228,0.7548,3915.0,3914.3,1.22634621]
[1733999458434,0.7548,3915.0,3914.1,2.40113294]
[1733999458755,2.55416,3915.2,3914.1,2.40113294]
[1733999458756,2.55405,3915.4,3914.3,2.55473]
[1733999458917,0.10614619,3915.3,3914.4,1.22685364]
[1733999459120,2.66030619,3915.2,3914.3,1.06823323]
[1733999459426,0.10614619,3915.1,3914.3,1.06823323]
[1733999459619,2.55416,3915.2,3914.3,2.29598398]
[1733999459964,0.10615233,3915.1,3914.3,2.29598398]
[1733999460120,2.55422,3915.1,3914.3,2.29598398]
[1733999460459,0.7801,3914.9,3914.2,1.78944008]
[1733999460659,0.7801,3914.9,3914.3,1.22795369]
[1733999460832,0.7801,3914.9,3914.2,1.06823323]
[1733999461039,0.7801,3914.9,3914.2,2.29618529]
[1733999461350,0.7801,3914.9,3914.3,1.22798427]
[1733999461667,3.33444,3914.9,3914.2,1.06823323]
[1733999461821,0.7801,3914.9,3914.2,1.22800659]
[1733999462168,0.7801,3914.9,3914.2,2.29623982]
[1733999463272,3.33445,3914.9,3914.2,2.29623982]
[1733999463617,0.7801,3914.9,3914.2,2.29623982]
[1733999465678,0.7801,3914.9,3914.2,1.06823323]
[1733999465861,0.7801,3914.9,3914.2,2.2963125]
[1733999466525,3.33447,3914.9,3914.2,2.2963125]
[1733999467270,0.10622731,3914.8,3914.2,2.2963125]
[1733999467454,3.33447,3914.9,3914.2,2.2963125]
[1733999467660,2.55454,3914.6,3914.2,2.2963125]
[1733999467973,0.10622702,3914.8,3913.8,1.06823323]
[1733999467974,2.55485,3914.2,3913.8,1.06823323]
[1733999468174,0.35044257,3914.9,3913.6,1.06823323]
[1733999468175,0.7687,3914.1,3913.6,1.06823323]
[1733999468417,2.55496,3914.0,3913.4,1.06473407]
[1733999468574,2.55507,3913.8,3913.5,1.22830401]
[1733999468793,2.55507,3913.8,3913.0,0.6558]
[1733999468794,2.55507,3913.8,3913.0,2.25598162]
[1733999468991,2.55507,3913.8,3912.7,2.55577]
[1733999468992,0.8064,3913.9,3913.1,1.22842389]
[1733999469145,2.55521,3913.6,3912.8,0.51878408]
[1733999469469,2.55521,3913.6,3912.9,1.2279404]
[1733999469676,2.55521,3913.6,3912.8,0.51878408]
[1733999469677,2.55521,3913.6,3913.0,1.2279404]
[1733999469876,2.55521,3913.6,3912.6,1.60018162]
[1733999469877,0.8064,3913.5,3912.6,1.60018162]
[1733999470083,2.55549,3913.2,3912.7,1.22795373]
[1733999470383,0.8064,3913.5,3912.1,0.6558]
[1733999470597,0.8042,3913.3,3912.2,1.74679604]
[1733999470740,0.8042,3913.3,3912.3,1.22742102]
[1733999470741,2.55577,3912.8,3912.3,1.22742102]
[1733999471072,0.8042,3912.7,3912.2,0.51937502]
[1733999471232,3.36001,3912.7,3911.7,0.6558]
[1733999471433,3.36001,3912.7,3912.1,0.50941356]
[1733999471635,1.140201,3912.7,3912.1,0.50941356]
[1733999471835,0.7657,3913.0,3911.4,1.60018162]
[1733999472036,0.7657,3912.2,3911.5,1.22670712]
[1733999472245,0.7657,3912.2,3911.2,3.0774943]
[1733999472451,0.7657,3912.2,3911.3,3.78249714]
[1733999472688,0.7657,3912.2,3911.3,3.42991745]
[1733999473195,0.7657,3912.2,3911.3,0.87322745]
[1733999473400,0.7657,3912.2,3911.4,2.55661]
[1733999474257,0.7657,3912.2,3911.3,0.87322745]
[1733999474594,0.7657,3912.2,3911.3,3.87322745]
[1733999475168,2.55618,3912.1,3911.2,0.5207543]
[1733999475367,0.7657,3912.2,3911.2,0.5207543]
[1733999476283,3.32183,3912.2,3911.2,0.5207543]
[1733999476483,3.654013,3912.2,3911.2,0.5207543]
[1733999477093,1.097883,3912.2,3911.2,0.5207543]
[1733999477316,0.7657,3912.2,3911.2,0.5207543]
[1733999477661,0.7657,3912.2,3911.2,3.0775043]
[1733999478072,0.7657,3912.2,3911.2,0.5207543]
[1733999478259,3.32182,3912.2,3911.2,0.5207543]
[1733999478463,0.7657,3912.2,3911.2,3.0774543]
[1733999479354,1.097868,3912.2,3911.2,2.5567]
[1733999479556,3.653968,3912.2,3911.1,3.0]
[1733999480012,3.653968,3912.2,3911.1,3.52047876]
[1733999480587,3.653968,3912.2,3911.2,3.0]
[1733999480791,0.8024,3912.1,3911.1,0.52047876]
[1733999480992,0.3690668,3912.0,3911.1,0.52047876]
[1733999481311,2.55657,3911.5,3910.8,0.52272749]
[1733999481477,2.55623,3912.0,3909.6,1.35168539]
[1733999481677,2.55623,3912.0,3909.5,2.06831606]
[1733999481678,0.8024,3910.9,3910.3,0.50289779]
[1733999481993,0.8024,3910.9,3910.3,0.45289779]
[1733999482525,0.8024,3910.9,3909.9,2.55759]
[1733999482823,0.8024,3910.9,3910.2,0.50821297]
[1733999482980,3.38778,3912.1,3910.3,0.6558]
[1733999483182,0.8316,3912.1,3910.5,2.82884142]
[1733999483383,0.8316,3912.1,3911.4,2.55662]
[1733999483931,0.8316,3912.1,3911.5,2.55655]
[1733999484082,0.8316,3912.1,3911.3,2.55668]
[1733999484821,0.8316,3912.1,3911.1,0.6558]
[1733999485006,0.8316,3912.7,3911.4,6.10662]
[1733999485382,2.55591,3912.5,3911.1,0.6558]
[1733999485582,0.8316,3912.1,3910.7,0.55]
[1733999485804,3.38782,3912.1,3910.9,2.55689]
[1733999486022,0.8316,3912.1,3910.9,2.55689]
[1733999487095,3.38778,3912.1,3911.0,2.55688]
[1733999487304,0.338778,3912.0,3911.0,2.55688]
[1733999487887,0.338778,3912.0,3910.7,0.55]
[1733999487888,0.8316,3912.1,3910.7,0.55]
[1733999488445,0.8316,3912.1,3910.7,3.10703]
[1733999488631,0.8316,3912.1,3911.0,3.0]
[1733999488831,0.8316,3912.1,3911.2,2.55674]
[1733999489348,2.55623,3912.0,3910.9,2.55694]
[1733999489568,0.8192,3911.8,3910.6,0.49924603]
[1733999489692,2.5565,3911.6,3910.6,3.49924603]
[1733999490036,3.37557,3911.8,3910.6,6.05634603]
[1733999490244,2.55649,3911.7,3910.6,6.05634603]
[1733999490424,2.55651,3911.6,3910.6,6.05634603]
[1733999490632,0.337571,3911.5,3910.6,6.05634603]
[1733999491004,3.37557,3911.8,3910.6,3.49924603]
[1733999491220,3.37557,3911.8,3910.7,2.55706]
[1733999491845,3.37557,3911.8,3910.6,0.49924603]
[1733999491846,2.5565,3911.6,3910.6,0.49924603]
[1733999492026,2.5565,3911.6,3910.6,3.49924603]
[1733999493496,0.8192,3911.8,3910.2,3.6558]
[1733999493702,2.55677,3911.2,3910.1,2.55746]
[1733999493897,3.37603,3911.1,3910.1,2.55746]
[1733999494540,3.37603,3911.1,3909.8,0.6558]
[1733999494541,0.8192,3911.1,3909.8,0.6558]
[1733999494727,0.8192,3911.1,3910.0,2.55751]
[1733999495143,0.8192,3911.1,3909.8,4.3113638]
[1733999495305,0.8192,3911.1,3910.2,2.55741]
[1733999496505,0.8192,3911.1,3910.0,2.55754]
[1733999496719,0.16825244,3911.6,3910.2,0.55]
[1733999497018,5.38487142,3912.4,3911.1,2.55681]
[1733999497019,0.96249828,3911.9,3911.1,2.55681]
[1733999497262,0.96249828,3911.9,3911.2,2.55674]
[1733999497407,0.7942,3911.9,3911.2,2.55674]
[1733999497613,0.16854252,3911.8,3911.2,2.55674]
[1733999497813,0.7942,3911.9,3911.2,2.55674]
[1733999498008,0.16854721,3911.8,3911.2,2.55674]
[1733999498258,0.16870477,3911.7,3911.2,2.55674]
[1733999498454,0.7942,3911.9,3911.2,0.255674]
[1733999498624,0.7942,3911.9,3910.6,3.55]
[1733999498625,0.32842705,3911.8,3910.6,3.55]
[1733999498826,0.16870042,3911.7,3911.1,2.55679]
[1733999499030,0.16870042,3911.6,3910.6,3.55]
[1733999499231,0.1688137,3911.5,3910.8,2.55697]
[1733999499535,0.7942,3911.9,3911.3,2.55668]
[1733999499738,0.16882203,3911.8,3911.3,2.55668]
[1733999499956,0.7942,3911.9,3911.3,2.55668]
[1733999500123,0.16882268,3911.8,3911.3,2.55668]
[1733999500329,0.7942,3911.9,3911.3,2.55668]
[1733999500524,0.1688946,3911.7,3911.3,2.55668]
[1733999500851,0.7942,3911.9,3910.9,0.610697]
[1733999501055,0.7999,3912.3,3912.0,2.55618]
[1733999501266,0.7999,3912.6,3912.0,2.55617]
[1733999501480,0.16902375,3912.5,3912.0,2.55617]
[1733999501610,0.7999,3912.6,3911.7,2.55643]
[1733999501817,0.15789714,3912.5,3912.2,2.55608]
[1733999502169,0.7999,3912.6,3912.0,2.55622]
[1733999502391,0.15787811,3912.5,3911.8,3.767803]
[1733999502572,0.7999,3912.6,3911.8,2.55636]
[1733999502771,0.15785588,3912.5,3911.8,2.55636]
[1733999502968,0.7999,3912.6,3911.6,0.50921357]
[1733999503174,0.15783567,3912.5,3911.6,0.50921357]
[1733999503383,0.7999,3912.6,3911.6,0.50921357]
[1733999503688,0.7999,3912.6,3911.7,3.6993855]
[1733999503837,0.7999,3912.6,3912.1,2.55616]
[1733999504789,0.7999,3912.6,3911.7,3.6993855]
[1733999504945,0.7999,3912.6,3912.2,2.55609]
[1733999506676,0.7999,3912.6,3911.8,2.55636]
[1733999506991,0.7999,3912.6,3911.9,2.55624]
[1733999507191,0.7999,3912.6,3912.0,2.55621]
[1733999507984,0.7999,3912.6,3912.1,2.55616]
[1733999508195,0.7999,3912.6,3911.8,0.89771491]
[1733999508389,0.7999,3912.6,3912.3,2.55603]
[1733999508603,0.7999,3912.6,3912.1,2.55616]
[1733999508739,0.7999,3912.6,3911.9,0.7662724]
[1733999508938,0.7999,3912.6,3912.2,2.55609]
[1733999510843,0.7999,3912.6,3911.9,0.7662724]
[1733999511041,0.7869,3912.9,3912.3,2.55603]
[1733999511248,0.7869,3912.9,3912.4,2.55596]
[1733999511664,0.7869,3912.9,3912.2,3.07951125]
[1733999512188,0.7869,3912.9,3912.3,2.55602]
[1733999513935,0.7869,3912.9,3912.2,0.52343125]
[1733999514096,0.7869,3912.9,3912.3,0.60796213]
[1733999514607,0.7869,3912.9,3912.5,2.55589]
[1733999514806,0.7869,3913.7,3912.3,0.60796213]
[1733999515042,0.7869,3913.7,3912.4,1.06442855]
[1733999515251,0.7869,3913.7,3912.8,2.55565]
[1733999515398,1.121096,3913.7,3912.8,2.55565]
[1733999518923,3.676216,3913.7,3912.6,2.55584]
[1733999519140,0.8243,3913.7,3912.3,1.06442855]
[1733999519345,0.8243,3912.7,3911.7,3.62084855]
[1733999519499,0.8243,3912.7,3911.8,1.23670548]
[1733999519838,2.55587,3912.6,3911.6,0.51634689]
[1733999520027,2.893887,3912.6,3911.6,0.51634689]
[1733999520195,0.338017,3912.6,3911.6,0.51634689]
[1733999520399,0.8243,3912.7,3911.8,2.55635]
[1733999520850,0.8243,3912.7,3911.7,3.0]
[1733999521142,3.38011,3912.7,3911.7,3.0]
[1733999521380,2.55584,3912.6,3911.7,3.0]
[1733999522188,0.8243,3912.7,3911.8,3.0]
[1733999522333,0.8243,3912.7,3911.7,5.55643]
[1733999523854,0.8243,3912.7,3911.8,2.82884142]
[1733999524054,0.8243,3912.7,3912.2,2.55609]
[1733999524220,0.8016,3913.5,3912.2,2.82884142]
[1733999524424,2.55533,3913.4,3912.4,2.55597]
[1733999524664,0.8016,3913.3,3912.4,2.55597]
[1733999525437,0.8016,3913.3,3912.2,2.82884142]
[1733999525668,0.8016,3913.3,3911.9,4.72022855]
[1733999525669,0.8016,3913.3,3912.4,2.55593]
[1733999525851,0.8016,3913.3,3912.4,3.06339116]
[1733999526181,0.8016,3913.3,3912.4,3.06343116]
[1733999526687,0.8016,3913.3,3912.8,2.55566]
[1733999527488,0.8016,3913.3,3912.5,3.0]
[1733999527621,0.7989,3914.1,3913.1,2.55549]
[1733999529149,0.7989,3914.1,3912.8,2.82884142]
[1733999529150,0.7989,3914.1,3913.3,2.55537]
[1733999530043,0.7989,3914.1,3913.4,2.55529]
[1733999530241,0.7989,3914.1,3913.3,2.55538]
[1733999530474,0.7989,3914.1,3913.5,2.55525]
[1733999530689,0.7989,3914.1,3913.6,0.51409758]
[1733999531195,0.7989,3914.1,3912.8,1.06442855]
[1733999531196,0.7989,3914.1,3912.8,2.82884142]
[1733999531371,0.8257,3914.4,3912.6,3.0]
[1733999531539,3.38106,3913.4,3912.5,0.5199721]
[1733999531935,0.8257,3913.4,3912.5,0.5199721]
[1733999532549,3.38104,3913.4,3912.2,2.5561]
[1733999532752,0.8061,3913.7,3912.2,2.5561]
[1733999533072,3.88803,3914.3,3911.5,2.1335755]
[1733999533073,0.8061,3912.8,3911.7,2.55643]
[1733999533689,0.8061,3912.8,3911.8,2.55636]
[1733999533884,0.8061,3912.8,3911.9,2.55629]
[1733999534060,0.8061,3912.8,3911.7,1.12351733]
[1733999534261,0.8061,3912.8,3911.9,2.55624]
[1733999535295,0.8061,3912.8,3911.7,4.12351733]
[1733999535450,3.36184,3912.8,3911.7,4.12351733]
[1733999535652,3.698024,3912.8,3911.7,6.67993733]
[1733999536386,1.142284,3912.8,3911.8,2.55635]
[1733999536590,0.8061,3912.8,3911.8,2.55635]
[1733999536884,0.8061,3912.8,3911.9,2.5563]
[1733999537815,0.8061,3912.8,3911.7,6.67994733]
[1733999537948,0.8061,3912.8,3911.7,6.07584019]
[1733999538586,0.8061,3912.8,3911.8,2.55631]
[1733999538903,0.8061,3912.8,3911.9,2.55629]
[1733999540979,0.8061,3912.8,3911.7,3.51941019]
[1733999541186,0.8179,3912.4,3911.5,4.06442855]
[1733999541390,0.8179,3912.4,3911.3,4.06442855]
[1733999541391,2.55611,3912.2,3911.3,4.06442855]
[1733999541556,2.55617,3912.1,3911.2,1.06442855]
[1733999541756,0.7712,3912.0,3911.0,1.06442855]
[1733999542030,0.7712,3912.0,3911.1,1.23631486]
[1733999542162,0.7712,3911.9,3910.9,3.62136855]
[1733999542356,2.55652,3911.6,3911.0,1.23674742]
[1733999542655,0.8207,3911.8,3910.8,3.05677875]
[1733999542859,3.37708,3911.8,3910.9,1.23678163]
[1733999543108,2.894088,3911.8,3910.7,1.06442855]
[1733999543261,0.8207,3911.5,3910.7,1.23675934]
[1733999543454,0.8207,3911.5,3910.5,3.62158855]
[1733999543658,0.8207,3911.5,3910.6,3.79397487]
[1733999543874,0.8207,3911.5,3910.8,2.55701]
[1733999544071,0.8207,3911.5,3910.9,1.23682487]
[1733999544271,0.8207,3911.5,3911.0,1.23682487]
[1733999544491,0.8207,3911.5,3910.8,3.62143855]
[1733999544702,0.8207,3911.5,3910.9,1.23673265]
[1733999544909,0.8207,3911.5,3910.8,3.62143855]
[1733999544910,0.8207,3911.5,3910.8,2.55701]
[1733999545203,0.8207,3911.5,3910.7,4.58816372]
[1733999545407,0.8207,3911.5,3910.8,1.23676355]
[1733999545605,0.8207,3911.5,3910.7,3.52373517]
[1733999545907,0.8207,3911.5,3910.7,0.52373517]
[1733999546507,1.15842,3911.5,3910.7,0.52373517]
[1733999547075,0.8207,3911.5,3910.7,3.08078517]
[1733999547874,0.8207,3911.5,3910.7,0.52373517]
[1733999548611,0.8207,3911.5,3910.7,3.52373517]
[1733999548771,0.8207,3911.5,3910.7,0.52373517]
[1733999548978,0.8207,3911.5,3910.7,3.08080517]
[1733999549174,0.8207,3911.5,3910.8,0.71452337]
[1733999549978,0.8207,3911.5,3910.7,3.08080517]
[1733999554179,0.8207,3911.5,3911.1,2.55678]
[1733999554618,0.8207,3911.5,3910.9,5.55694]
[1733999554777,0.8207,3911.5,3910.7,3.08079517]
[1733999554976,0.8207,3911.5,3910.7,0.52373517]
[1733999555203,0.7588,3911.3,3910.3,2.55729]
[1733999555409,0.7588,3911.2,3910.3,2.55378771]
[1733999555916,0.7588,3911.2,3910.3,3.0745787]
[1733999556457,0.7588,3911.2,3910.3,2.55378771]
[1733999556819,2.55643,3911.8,3909.8,2.55761]
[1733999556820,2.5569,3911.0,3909.8,2.55761]
[1733999557005,2.5569,3911.0,3909.7,4.06757617]
[1733999557006,0.7844,3910.9,3910.0,3.0]
[1733999557616,0.7844,3910.9,3910.0,3.50162171]
[1733999558108,3.34136,3910.9,3910.0,3.50162171]
[1733999558305,0.7844,3910.9,3910.0,3.50162171]
[1733999558851,0.7522,3910.8,3910.0,0.50162171]
[1733999559096,0.356485,3910.7,3910.0,0.50162171]
[1733999559298,0.7522,3910.6,3910.0,0.50162171]
[1733999559800,0.829,3911.0,3910.0,3.33046313]
[1733999560101,0.829,3911.0,3910.5,2.5572]
[1733999560299,0.829,3911.0,3910.7,2.55702]
[1733999560513,0.829,3911.0,3910.6,0.25572]
[1733999560714,0.7615,3911.4,3910.9,2.55695]
[1733999560850,0.7615,3911.4,3910.8,2.82884142]
[1733999561365,0.7615,3911.4,3911.2,2.55674]
[1733999561700,0.7615,3911.4,3911.1,2.55679]
[1733999561905,0.7615,3911.4,3910.9,3.0]
[1733999562106,0.7615,3911.4,3911.0,0.83859214]
[1733999562611,0.7615,3911.4,3911.1,3.0]
[1733999562963,0.7615,3911.4,3911.1,3.52095366]
[1733999565171,0.7695,3911.7,3911.2,2.55675]
[1733999565366,0.7695,3911.7,3911.1,0.52095366]
[1733999565599,0.7695,3911.7,3911.4,2.55656]
[1733999566679,0.7695,3911.7,3911.2,2.55674]
[1733999569401,0.7695,3911.7,3911.1,0.52095366]
[1733999569402,0.7695,3911.7,3911.3,2.55666]
[1733999571306,0.7695,3911.7,3911.3,2.55663]
[1733999572710,0.7695,3911.7,3911.1,3.07775366]
[1733999572876,0.7695,3911.7,3911.2,2.55674]
[1733999573206,0.7695,3911.7,3911.1,3.52095366]
[1733999573526,0.7695,3911.7,3910.7,3.0]
[1733999573871,0.15480428,3912.0,3910.4,2.55726]
[1733999573872,2.55659,3911.5,3910.4,2.55726]
[1733999574105,2.55686,3911.1,3910.5,0.52349116]
[1733999574279,0.8267,3911.0,3910.5,0.52349116]
[1733999574607,0.832,3910.9,3910.5,0.52349116]
[1733999574982,0.832,3910.9,3910.1,2.55747]
[1733999576174,0.832,3910.9,3910.4,0.52226446]
[1733999576575,1.18634094,3910.9,3910.4,0.52226446]
[1733999576770,0.832,3910.9,3910.4,3.07951446]
[1733999577981,0.832,3910.9,3910.4,0.52226446]
[1733999579122,0.832,3910.9,3910.1,1.06757617]
[1733999579339,0.832,3910.9,3909.9,1.60136426]
[1733999579340,0.832,3910.9,3909.9,1.06757617]
[1733999579509,0.8088,3910.8,3909.9,3.0]
[1733999579671,0.8088,3910.6,3909.9,0.50381374]
[1733999580732,0.8088,3910.6,3909.8,2.55766]
[1733999581028,0.8088,3910.6,3909.7,2.55773]
[1733999581239,0.8088,3910.6,3909.8,0.50841478]
[1733999582106,0.8088,3910.6,3909.7,2.55773]
[1733999582389,0.8088,3910.4,3909.5,1.06757617]
[1733999582517,0.8088,3910.4,3909.6,1.23696744]
[1733999582839,0.8088,3910.4,3909.7,0.50110424]
[1733999583904,0.7723,3910.3,3909.3,3.62553617]
[1733999584108,0.7723,3910.2,3909.2,4.06757617]
[1733999584303,1.105269,3910.2,3909.3,1.23686734]
[1733999584570,0.7723,3910.2,3909.2,2.55804]
[1733999584708,0.7723,3910.2,3909.3,1.23693402]
[1733999584911,0.7723,3910.2,3909.5,0.51502825]
[1733999585238,0.7723,3910.2,3909.6,2.55775]
[1733999585414,0.7723,3910.2,3909.5,1.17082825]
[1733999585619,0.7723,3910.2,3909.6,1.46061419]
[1733999585864,0.7723,3910.2,3909.8,2.55764]
[1733999586163,0.7723,3910.2,3909.6,1.29141661]